bitfinex-derivatives/quotes_BNBF0:USTF0_20250904
["timestamp","ask_amount","ask_price","bid_price","bid_amount"]
[1756991274015,0.20498019,849.05,848.33,0.79016575]
[1756991275026,0.20498019,849.05,848.34,0.79016575]
[1756991276117,0.20498019,849.05,848.33,0.79016575]
[1756991276426,0.20498019,849.05,848.34,0.79016575]
[1756991276617,0.20498019,849.05,848.39,0.79016575]
[1756991277320,0.20498019,849.05,848.4,0.79016575]
[1756991277518,0.20498019,849.05,848.4,0.7935423]
[1756991279423,0.20498019,849.05,848.41,0.7935423]
[1756991280624,0.79316955,849.03,848.47,0.7935423]
[1756991280822,0.72028703,849.02,848.47,0.7935423]
[1756991281020,0.72028703,849.02,848.42,0.7935423]
[1756991281232,0.72028703,849.04,848.42,0.7935423]
[1756991282121,0.20498019,849.05,847.74,0.20498019]
[1756991282122,0.20498019,849.05,848.4,0.7935423]
[1756991282326,0.20498019,849.05,848.39,0.7935423]
[1756991282724,0.92526722,849.05,848.39,0.7935423]
[1756991282925,0.72028703,849.04,848.39,0.7935423]
[1756991283424,0.20498019,849.05,848.39,0.7935423]
[1756991283625,0.20498019,849.05,848.38,0.7935423]
[1756991284424,0.92526722,849.05,848.38,0.7935423]
[1756991284623,0.72028703,849.04,848.38,0.7935423]
[1756991285529,0.20498019,849.05,848.38,0.7935423]
[1756991286027,0.20498019,849.05,848.37,0.7935423]
[1756991286828,0.20498019,849.05,848.36,0.7935423]
[1756991287229,0.20498019,849.05,848.37,0.7935423]
[1756991287425,0.20498019,849.05,848.36,0.7935423]
[1756991287729,0.20498019,849.05,848.37,0.7935423]
[1756991288126,0.20498019,849.05,848.36,0.7935423]
[1756991289731,0.92526722,849.05,848.38,0.7935423]
[1756991290429,0.92526722,849.05,848.37,0.7935423]
[1756991290730,0.72028703,849.04,848.37,0.7935423]
[1756991290929,0.20498019,849.05,848.37,0.7935423]
[1756991291127,0.20498019,849.05,848.35,0.7935423]
[1756991292732,0.20498019,849.05,848.34,0.7935423]
[1756991293232,0.92526722,849.05,848.35,0.7935423]
[1756991293429,0.72028703,849.04,848.35,0.7935423]
[1756991293632,0.72014557,849.04,848.35,0.7935423]
[1756991294042,0.72014557,849.04,848.43,0.7935423]
[1756991294737,0.20498019,849.05,848.43,0.7935423]
[1756991296135,0.20498019,849.05,848.41,0.7935423]
[1756991297534,0.20498019,849.05,848.42,0.7935423]
[1756991298034,0.20498019,849.05,848.43,0.7935423]
[1756991301242,0.20498019,849.05,848.42,0.7935423]
[1756991305046,0.20498019,849.05,848.44,0.7935423]
[1756991306046,0.20498019,849.05,847.74,0.20498019]
[1756991306047,0.20498019,849.05,848.43,0.7935423]
[1756991306344,0.20498019,849.05,848.47,0.7935423]
[1756991307143,0.20498019,849.05,848.5,0.7935423]
[1756991307850,0.20498019,849.05,848.51,0.7935423]
[1756991308548,0.20498019,849.05,848.53,0.7935423]
[1756991311144,0.20498019,849.05,848.51,0.7935423]
[1756991311448,0.20498019,849.05,848.5,0.7935423]
[1756991314151,0.20498019,849.05,848.52,0.7935423]
[1756991316153,0.20498019,849.05,848.5,0.7935423]
[1756991317251,0.20498019,849.05,848.49,0.7935423]
[1756991319653,0.20498019,849.05,848.51,0.7935423]
[1756991320354,0.20498019,849.05,848.39,0.7935423]
[1756991320556,0.20498019,849.05,848.3,0.7935423]
[1756991321256,0.20498019,849.05,848.29,0.7935423]
[1756991321457,0.20498019,849.05,848.3,0.7935423]
[1756991322456,0.20498019,849.05,848.41,0.7935423]
[1756991322854,0.92501576,849.05,848.41,0.7935423]
[1756991323158,0.72003557,849.04,848.41,0.7935423]
[1756991323555,0.20498019,849.05,848.41,0.7935423]
[1756991323755,0.20498019,849.05,848.42,0.7935423]
[1756991326158,0.20498019,849.05,848.4,0.7935423]
[1756991326765,0.20498019,849.05,848.42,0.7935423]
[1756991327467,0.20498019,849.05,848.43,0.7935423]
[1756991328166,0.92507808,849.05,848.43,0.7935423]
[1756991328363,0.72009789,849.04,848.41,0.7935423]
[1756991328567,0.20498019,849.05,848.41,0.7935423]
[1756991330868,0.92507808,849.05,848.41,0.7935423]
[1756991331069,0.72009789,849.04,848.41,0.7935423]
[1756991331269,0.72009789,849.04,848.22,1.0607609]
[1756991331270,0.20498019,849.05,848.39,0.7935423]
[1756991331464,0.20498019,849.05,848.18,1.0607609]
[1756991331465,0.20498019,849.05,848.38,0.79348207]
[1756991332866,0.20498019,849.05,848.39,0.79348207]
[1756991337470,0.20498019,849.05,848.4,0.79348207]
[1756991341276,0.20498019,849.05,848.39,0.79348207]
[1756991341871,0.20498019,849.05,848.41,0.79348207]
[1756991345277,0.20498019,849.05,848.4,0.79348207]
[1756991346077,0.20498019,849.05,848.44,0.79348207]
[1756991346374,0.92486532,849.05,848.4,0.79348207]
[1756991346574,0.71988513,849.04,848.4,0.79348207]
[1756991346773,0.20498019,849.05,848.4,0.79348207]
[1756991347876,0.92486532,849.05,848.4,0.79348207]
[1756991348178,0.71988513,849.04,848.4,0.79348207]
[1756991348374,0.20498019,849.05,848.4,0.79348207]
[1756991349579,0.92486532,849.05,848.39,0.79348207]
[1756991349780,0.71988513,849.04,848.39,0.79348207]
[1756991350276,0.71988513,849.04,848.4,0.79348207]
[1756991350780,0.20498019,849.05,848.4,0.79348207]
[1756991351381,0.20498019,849.05,848.38,0.79348207]
[1756991353384,0.20498019,849.05,848.39,0.79348207]
[1756991353585,0.20498019,849.05,848.38,0.79348207]
[1756991353786,0.20498019,849.05,848.17,1.0607609]
[1756991353986,0.20498019,849.05,848.38,0.79370834]
[1756991354581,0.20498019,849.05,848.4,0.79370834]
[1756991355783,0.20498019,849.05,848.39,0.79370834]
[1756991356484,0.20498019,849.05,848.38,0.79370834]
[1756991358484,0.20498019,849.05,848.4,0.79370834]
[1756991360393,0.20498019,849.05,848.41,0.79370834]
[1756991361491,0.20498019,849.05,848.39,0.79370834]
[1756991362393,0.92497467,849.05,848.4,0.79370834]
[1756991362595,0.71999448,849.04,848.4,0.79370834]
[1756991362794,0.20498019,849.05,848.4,0.79370834]
[1756991363396,0.20498019,849.05,848.39,0.79370834]
[1756991366499,0.20498019,849.05,848.38,0.79370834]
[1756991367289,0.20498019,849.05,848.36,0.79370834]
[1756991368092,0.20498019,849.05,848.38,0.79370834]
[1756991369090,0.20498019,849.05,848.39,0.79370834]
[1756991370595,0.20498019,849.05,848.4,0.79370834]
[1756991371496,0.20498019,849.05,848.39,0.79370834]
[1756991371697,0.20498019,849.05,848.38,0.79370834]
[1756991372392,0.20498019,849.05,848.39,0.79370834]
[1756991372797,0.20498019,849.05,848.41,0.79370834]
[1756991374397,0.20498019,849.05,848.42,0.79370834]
[1756991376094,0.20498019,849.05,848.44,0.79370834]
[1756991376292,0.79314722,849.01,848.48,0.79370834]
[1756991376494,0.72086912,849.0,848.44,0.79370834]
[1756991376694,0.92584931,849.05,848.44,0.79370834]
[1756991377398,0.92584931,849.05,848.45,0.79370834]
[1756991378400,1.71899653,849.05,848.45,0.79370834]
[1756991378695,0.72086912,849.04,848.45,0.79370834]
[1756991379299,0.72086912,849.04,848.27,1.0607609]
[1756991379300,0.72086912,849.04,848.46,0.79370834]
[1756991380401,0.79314722,849.03,848.47,0.79370834]
[1756991380601,0.72086912,849.02,848.47,0.79370834]
[1756991381599,0.72086912,849.03,848.45,0.79370834]
[1756991381797,0.72086912,849.04,848.44,0.79370834]
[1756991382397,0.72086912,849.04,848.46,0.79370834]
[1756991382597,0.92584931,849.05,848.46,0.79370834]
[1756991386506,0.92584931,849.05,848.44,0.79370834]
[1756991386701,0.72086912,849.04,848.44,0.79370834]
[1756991386904,0.20498019,849.05,848.44,0.79370834]
[1756991389006,0.20498019,849.05,848.46,0.79370834]
[1756991389412,1.71899653,849.05,848.46,0.79370834]
[1756991389719,0.72086912,849.04,848.46,0.79370834]
[1756991390512,1.51401634,849.04,848.47,0.79370834]
[1756991390710,0.72086912,849.03,848.47,0.79370834]
[1756991391211,1.51401634,849.03,848.48,0.79370834]
[1756991391411,0.72086912,849.03,848.46,0.79370834]
[1756991391614,0.20498019,849.05,848.46,0.79370834]
[1756991391810,0.99812741,849.05,848.46,0.79370834]
[1756991392015,0.72205108,849.04,848.46,0.79370834]
[1756991392209,0.20498019,849.05,848.43,0.79370834]
[1756991392410,0.20498019,849.05,848.44,0.79370834]
[1756991396513,0.20498019,849.05,848.43,0.79370834]
[1756991396920,0.20498019,849.05,848.44,0.79370834]
[1756991400017,0.7221531,849.04,848.44,0.79370834]
[1756991400217,0.79314722,849.01,848.49,0.79370834]
[1756991400520,0.20498019,849.05,847.74,0.20498019]
[1756991400521,0.79314722,848.99,848.48,0.79370834]
[1756991400827,0.7221531,848.98,848.47,0.79370834]
[1756991401015,0.7221531,848.97,848.47,0.79370834]
[1756991401318,0.7221531,848.96,848.47,0.79370834]
[1756991401520,0.7221531,848.95,848.47,0.79370834]
[1756991401719,0.7221531,848.94,848.47,0.79370834]
[1756991401919,0.7221531,848.93,848.47,0.79370834]
[1756991402123,0.7221531,848.92,848.51,0.79370834]
[1756991402320,0.7221531,848.91,848.51,0.79370834]
[1756991402520,0.7221531,848.9,848.51,0.79370834]
[1756991402819,0.7221531,848.89,848.51,0.79370834]
[1756991403021,0.7221531,848.88,848.51,0.79370834]
[1756991403220,0.79314722,849.02,848.53,0.79370834]
[1756991403422,0.72205565,849.01,848.53,0.79370834]
[1756991403620,0.72205565,849.01,848.54,0.79370834]
[1756991403823,0.72205565,849.0,848.54,0.79370834]
[1756991404025,0.72205565,848.99,848.54,0.79370834]
[1756991404224,0.72205565,848.98,848.54,0.79370834]
[1756991404523,0.72205565,848.97,848.54,0.79370834]
[1756991404721,0.72205565,848.96,848.54,0.79370834]
[1756991404920,0.72205565,848.95,848.54,0.79370834]
[1756991406822,0.72194923,849.02,848.56,0.7948018]
[1756991407025,0.72194923,849.01,848.56,0.7948018]
[1756991407324,0.72194923,849.0,848.55,0.7948018]
[1756991407625,0.72194923,848.99,848.55,0.7948018]
[1756991407825,0.72194923,848.98,848.55,0.7948018]
[1756991408028,0.72194923,848.97,848.55,0.7948018]
[1756991408325,0.7947085,849.11,848.55,0.7948018]
[1756991408521,0.72170398,849.1,848.55,0.7948018]
[1756991409123,0.72170398,849.1,848.54,0.7948018]
[1756991409520,0.72170398,849.11,848.54,0.7948018]
[1756991410423,0.72170398,849.11,848.53,0.7948018]
[1756991410625,0.72170398,849.12,848.53,0.7948018]
[1756991411224,0.72170398,849.12,848.52,0.7948018]
[1756991411423,0.72170398,849.13,848.52,0.7948018]
[1756991412327,0.72139864,849.13,848.52,0.7948018]
[1756991412727,1.51610714,849.13,848.53,0.7948018]
[1756991412927,0.72139864,849.12,848.53,0.7948018]
[1756991413225,0.72139864,849.12,848.55,0.7948018]
[1756991413527,0.72139864,849.15,848.58,0.7948018]
[1756991413728,0.72139864,849.18,848.59,0.7948018]
[1756991414329,0.72139864,849.19,848.58,0.7948018]
[1756991414528,0.72139864,849.2,848.58,0.7948018]
[1756991415127,1.51610714,849.2,848.59,0.7948018]
[1756991415328,0.72139864,849.19,848.59,0.7948018]
[1756991416025,1.51610714,849.19,848.59,0.7948018]
[1756991416226,0.72139864,849.18,848.59,0.7948018]
[1756991416429,0.72139864,849.19,848.59,0.7948018]
[1756991417326,0.72139864,849.19,848.58,0.7948018]
[1756991417731,0.72139864,849.2,848.58,0.7948018]
[1756991418733,1.51610714,849.2,848.58,0.7948018]
[1756991418933,0.72139864,849.19,848.58,0.7948018]
[1756991419340,0.72139864,849.2,848.57,0.7948018]
[1756991420032,0.72139864,849.21,848.57,0.7948018]
[1756991420930,0.72139864,849.21,848.44,0.7948018]
[1756991421130,0.72139864,849.4,848.48,0.7948018]
[1756991421333,0.72139864,849.44,848.48,0.7948018]
[1756991422233,0.72139864,849.44,848.47,0.7948018]
[1756991422433,0.72139864,849.45,848.47,0.7948018]
[1756991424431,1.51610714,849.46,848.47,0.7948018]
[1756991424633,0.72139864,849.45,848.47,0.7948018]
[1756991425233,0.72139864,849.45,848.46,0.7948018]
[1756991425437,0.72139864,849.46,848.46,0.7948018]
[1756991426433,1.51610714,849.46,848.45,0.7948018]
[1756991426734,0.7947085,849.43,848.42,0.7948018]
[1756991426938,0.7947085,849.38,848.44,0.7948018]
[1756991427136,0.72139864,849.37,848.44,0.7948018]
[1756991427336,0.7947085,849.26,848.52,0.7948018]
[1756991427538,0.7947085,849.24,848.54,0.7948018]
[1756991427836,0.7947085,849.24,846.12,3.6949463]
[1756991427837,0.7947085,849.22,848.56,0.7948018]
[1756991428032,0.72139864,849.21,848.56,0.7948018]
[1756991428337,0.72139864,849.21,848.55,0.7948018]
[1756991428537,1.51610714,849.21,848.56,0.7948018]
[1756991428738,0.72139864,849.2,848.56,0.7948018]
[1756991428933,0.72139864,849.2,848.55,0.7948018]
[1756991429236,0.72139864,849.2,847.61,2.6392474]
[1756991429237,0.72139864,849.2,848.46,0.7948018]
[1756991429433,0.72139864,849.22,848.46,0.7948018]
[1756991429636,0.72139864,849.23,848.46,0.7948018]
[1756991431536,0.72139864,849.23,848.44,0.7948018]
[1756991431740,0.72139864,849.26,848.44,0.7948018]
[1756991432937,0.7947085,849.23,848.47,0.7948018]
[1756991433141,0.72139864,849.22,848.47,0.7948018]
[1756991436342,1.51610714,849.22,848.47,0.7948018]
[1756991436541,0.72139864,849.21,848.46,0.7948018]
[1756991436746,0.72139864,849.23,848.46,0.7948018]
[1756991437245,0.72139864,849.23,848.47,0.7948018]
[1756991437445,0.7947085,849.2,848.49,0.7948018]
[1756991437640,0.72139864,849.19,848.49,0.7948018]
[1756991438253,0.7947085,849.21,848.49,0.7948018]
[1756991438254,0.72139864,849.2,848.49,0.7948018]
[1756991438745,1.51610714,849.2,848.49,0.7948018]
[1756991438953,0.72139864,849.19,848.48,0.7948018]
[1756991439142,0.72139864,849.2,848.48,0.7948018]
[1756991440053,0.72139864,849.2,848.39,0.7948018]
[1756991440253,0.7947085,849.22,848.36,0.7948018]
[1756991440551,0.72139864,849.21,848.36,0.7948018]
[1756991441142,0.72139864,849.21,848.35,0.7948018]
[1756991441444,0.72139864,849.21,848.34,0.7948018]
[1756991441642,0.7947085,849.16,848.33,0.7948018]
[1756991441846,0.72139864,849.15,848.33,0.7948018]
[1756991442643,0.72139864,849.16,848.33,0.7948018]
[1756991442842,1.51610714,849.16,848.34,0.7948018]
[1756991443045,1.51610714,849.15,848.34,0.7948018]
[1756991443342,0.7947085,849.12,848.36,0.7948018]
[1756991443542,0.72139864,849.11,848.36,0.7948018]
[1756991444146,0.72139864,849.12,848.36,0.7948018]
[1756991444644,1.51610714,849.12,848.36,0.7948018]
[1756991444845,0.72139864,849.11,848.36,0.7948018]
[1756991445447,1.51610714,849.12,848.37,0.7948018]
[1756991445644,1.51610714,849.11,848.37,0.7948018]
[1756991445847,0.72139864,849.1,848.37,0.7948018]
[1756991448749,0.72139864,849.1,848.39,0.7948018]
[1756991448954,0.72139864,849.11,848.4,0.7948018]
[1756991449149,0.72139864,849.11,848.43,0.7948018]
[1756991449453,1.51610714,849.15,848.44,0.7948018]
[1756991449651,1.51610714,849.14,848.44,0.7948018]
[1756991449851,0.72139864,849.13,848.47,0.7948018]
[1756991450049,0.72139864,849.16,848.47,0.7948018]
[1756991450454,0.72139864,849.16,848.37,0.7948018]
[1756991450651,0.72139864,849.31,848.45,0.7948018]
[1756991450852,0.72139864,849.38,848.45,0.7948018]
[1756991451652,0.72139864,849.38,848.44,0.7948018]
[1756991451852,0.72139864,849.39,848.44,0.7948018]
[1756991454252,0.72139864,849.39,846.28,3.6949463]
[1756991454253,0.7947085,849.38,848.46,0.7948018]
[1756991454455,0.72094679,849.37,848.46,0.7948018]
[1756991455056,1.51565529,849.37,848.46,0.7948018]
[1756991455259,0.72094679,849.36,848.46,0.7948018]
[1756991455857,0.7947085,849.35,848.46,0.7948018]
[1756991456157,0.72094679,849.34,848.48,0.7948018]
[1756991456660,0.72094679,849.34,848.47,0.7948018]
[1756991456858,0.72094679,849.35,848.47,0.7948018]
[1756991458269,1.51565529,849.35,848.5,0.7948018]
[1756991458457,0.72094679,849.34,848.5,0.7948018]
[1756991459061,0.7947085,849.3,848.53,0.7948018]
[1756991459259,0.72094679,849.29,848.53,0.7948018]
[1756991459864,0.7947085,849.26,848.55,0.7948018]
[1756991460159,0.72094679,849.25,848.55,0.7948018]
[1756991460561,0.72094679,849.25,848.56,0.7948018]
[1756991460863,0.7947085,849.27,848.56,0.7948018]
[1756991460864,0.72094679,849.26,848.56,0.7948018]
[1756991461260,1.51565529,849.26,848.56,0.7948018]
[1756991461563,0.72094679,849.25,848.56,0.7948018]
[1756991461760,0.72094679,849.25,847.46,2.6392474]
[1756991461761,0.72094679,849.25,848.53,0.7948018]
[1756991462064,0.72094679,849.28,848.53,0.7948018]
[1756991462361,0.72094679,849.28,848.54,0.7948018]
[1756991462563,0.72094679,849.29,848.54,0.7948018]
[1756991464459,0.7947085,849.27,848.57,0.7948018]
[1756991464658,0.72094679,849.26,848.57,0.7948018]
[1756991464860,1.51565529,849.26,848.57,0.7948018]
[1756991465060,0.72094679,849.25,848.57,0.7948018]
[1756991465460,0.72094679,849.25,847.47,2.6392474]
[1756991465461,0.72094679,849.25,848.56,0.7948018]
[1756991465764,0.72094679,849.27,848.56,0.7948018]
[1756991466560,0.72094679,849.27,848.54,0.7948018]
[1756991466763,0.72094679,849.3,848.54,0.7948018]
[1756991467264,0.7947085,849.28,848.55,0.7948018]
[1756991467464,0.72094679,849.27,848.45,0.7948018]
[1756991468962,0.72094679,849.28,848.45,0.7948018]
[1756991469166,0.72094679,849.28,848.46,0.7948018]
[1756991469361,1.51565529,849.28,848.46,0.7948018]
[1756991469561,0.72094679,849.27,848.48,0.7948018]
[1756991469764,0.72094679,849.28,848.47,0.7948018]
[1756991469967,0.72094679,849.28,848.48,0.7948018]
[1756991470565,0.72094679,849.28,848.47,0.7948018]
[1756991470762,0.72094679,849.28,848.48,0.7948018]
[1756991470966,2.6406931,850.67,848.51,0.7948018]
[1756991470967,0.7947085,849.25,848.51,0.7948018]
[1756991471163,0.72094679,849.24,848.51,0.7948018]
[1756991471367,1.51565529,849.24,848.52,0.7948018]
[1756991471566,0.72094679,849.23,848.52,0.7948018]
[1756991472363,1.51565529,849.23,848.51,0.7948018]
[1756991472565,0.72115194,849.22,848.51,0.7948018]
[1756991473168,0.72115194,849.22,848.5,0.7948018]
[1756991473363,0.72115194,849.23,848.5,0.7948018]
[1756991474567,0.72115194,849.23,848.51,0.7948018]
[1756991475069,1.51586044,849.23,848.51,0.7948018]
[1756991475368,0.72115194,849.22,848.51,0.7948018]
[1756991477366,0.7947085,849.21,848.52,0.7948018]
[1756991477573,0.72115194,849.2,848.53,0.7948018]
[1756991479677,0.72115194,849.2,848.55,0.7948018]
[1756991479678,0.7947085,849.18,848.55,0.7948018]
[1756991479877,0.72115194,849.17,848.55,0.7948018]
[1756991480578,0.72115194,849.17,848.53,0.7948018]
[1756991480775,0.72115194,849.19,848.53,0.7948018]
[1756991481078,0.72115194,849.19,848.52,0.7948018]
[1756991481374,0.72115194,849.21,848.52,0.7948018]
[1756991482075,1.51586044,849.21,848.53,0.7948018]
[1756991482375,1.51586044,849.2,848.53,0.7948018]
[1756991482579,0.72115194,849.19,848.53,0.7948018]
[1756991483475,0.72115194,849.19,848.5,0.7948018]
[1756991483773,0.7947085,849.12,848.38,0.7948018]
[1756991483976,0.72115194,849.11,848.38,0.7948018]
[1756991484175,1.51586044,849.11,848.37,0.7948018]
[1756991484378,0.72115194,849.1,848.37,0.7948018]
[1756991484580,0.7947085,849.07,848.4,0.7948018]
[1756991484780,0.72115194,849.06,848.4,0.7948018]
[1756991485480,0.72115194,849.06,848.39,0.7948018]
[1756991485776,0.72115194,849.06,848.2,1.0607609]
[1756991485777,0.72115194,849.08,848.38,0.7948018]
[1756991486177,0.72115194,849.09,848.38,0.7948018]
[1756991486677,0.72115194,849.09,848.35,0.7948018]
[1756991486881,1.51586044,849.13,848.36,0.7948018]
[1756991487181,0.72115194,849.12,848.35,0.7948018]
[1756991487578,0.72115194,849.13,848.35,0.7948018]
[1756991488080,1.51412004,849.13,848.36,0.7934585]
[1756991488280,1.588901,849.54,847.08,2.6392474]
[1756991488281,1.51412004,849.12,848.34,0.7934585]
[1756991488580,0.72115194,849.11,848.34,0.7934585]
[1756991488776,0.72115194,849.11,847.93,1.5911414]
[1756991488777,0.72115194,849.11,848.33,0.7934585]
[1756991488978,0.72115194,849.13,848.33,0.7934585]
[1756991489281,1.51412004,849.13,848.33,0.7934585]
[1756991489481,0.72115194,849.12,848.33,0.7934585]
[1756991489977,0.7929681,849.13,848.33,0.7934585]
[1756991490181,0.72066452,849.12,848.33,0.7934585]
[1756991490580,0.72066452,849.13,848.32,0.7934585]
[1756991490777,0.72066452,849.14,848.32,0.7934585]
[1756991491683,1.51363262,849.14,848.32,0.7934585]
[1756991491982,0.72066452,849.13,848.32,0.7934585]
[1756991492480,0.72066452,849.14,848.32,0.7934585]
[1756991493285,0.72066452,849.14,848.34,0.7934585]
[1756991493286,0.7929681,849.11,848.34,0.7934585]
[1756991493584,0.72066452,849.1,848.34,0.7934585]
[1756991495987,0.7929681,849.09,848.36,0.7934585]
[1756991496187,0.72066452,849.08,848.36,0.7934585]
[1756991497283,0.72066452,849.08,848.35,0.7934585]
[1756991497887,0.7929681,849.07,848.37,0.7934585]
[1756991498089,0.7929681,849.07,848.2,1.0607609]
[1756991498090,0.7929681,849.04,848.39,0.7934585]
[1756991498291,0.72066452,849.03,848.38,0.7934585]
[1756991498487,0.72035016,849.04,848.38,0.7934585]
[1756991498687,0.72035016,849.04,848.37,0.7934585]
[1756991498991,0.72035016,849.05,848.37,0.7934585]
[1756991499889,0.72035016,849.06,848.37,0.7934585]
[1756991500988,0.72035016,849.06,848.36,0.7934585]
[1756991501189,0.72035016,849.07,848.37,0.7934585]
[1756991501387,0.72035016,849.08,848.37,0.7934585]
[1756991501587,0.72035016,849.08,847.35,2.6392474]
[1756991501588,0.72035016,849.08,848.36,0.7934585]
[1756991501791,0.72030991,849.09,848.38,0.7934585]
[1756991501991,0.72030991,849.1,848.38,0.7934585]
[1756991502590,0.72030991,849.12,848.38,0.7934585]
[1756991503893,0.72030991,849.12,848.42,0.7934585]
[1756991504190,0.72030991,849.14,848.46,0.7934585]
[1756991504393,1.51327801,849.16,848.47,0.7934585]
[1756991504593,0.72030991,849.15,848.47,0.7934585]
[1756991505491,0.72030991,849.15,848.46,0.7934585]
[1756991505690,0.72030991,849.16,848.46,0.7934585]
[1756991507095,0.72030991,849.16,848.45,0.7934585]
[1756991507295,0.72030991,849.17,848.45,0.7934585]
[1756991507694,1.51327801,849.18,848.45,0.7934585]
[1756991507892,0.72030991,849.17,848.45,0.7934585]
[1756991509293,0.72030991,849.18,848.45,0.7934585]
[1756991509697,0.72030991,849.18,848.44,0.7934585]
[1756991509897,0.72030991,849.19,848.44,0.7934585]
[1756991510597,0.72030991,849.2,848.44,0.7934585]
[1756991510992,1.51327801,849.2,848.44,0.7934585]
[1756991511195,0.72030991,849.19,848.44,0.7934585]
[1756991512397,1.51327801,849.19,848.45,0.7934585]
[1756991512597,0.72030991,849.18,848.45,0.7934585]
[1756991512997,1.51327801,849.18,848.44,0.7934585]
[1756991513194,0.72030991,849.17,848.44,0.7934585]
[1756991513597,0.72030991,849.18,848.45,0.7934585]
[1756991513795,0.72030991,849.19,848.45,0.7934585]
[1756991513997,0.72030991,849.19,848.44,0.7934585]
[1756991514194,0.72030991,849.2,848.44,0.7934585]
[1756991514395,0.7929681,849.21,848.45,0.7934585]
[1756991514799,0.7929681,849.2,848.45,0.7934585]
[1756991515898,0.7929681,849.21,848.44,0.7934585]
[1756991516195,0.7929681,849.2,848.45,0.7934585]
[1756991516396,0.7929681,849.21,848.44,0.7934585]
[1756991517004,0.7929681,849.2,848.44,0.7934585]
[1756991517200,0.7929681,849.2,848.45,0.7934585]
[1756991517698,2.6406931,850.35,847.3,2.6392474]
[1756991517699,0.7929681,849.21,848.44,0.7934585]
[1756991518202,0.72042499,849.2,848.45,0.79308736]
[1756991518800,0.79311743,849.21,848.44,0.79308736]
[1756991519303,0.72044755,849.2,848.44,0.79308736]
[1756991519604,1.51356498,849.21,848.44,0.79308736]
[1756991519898,0.72044755,849.2,848.44,0.79308736]
[1756991520404,1.51356498,849.2,848.45,0.79308736]
[1756991520603,0.72044755,849.19,848.45,0.79308736]
[1756991520805,0.72044755,849.2,848.45,0.79308736]
[1756991521006,1.51356498,849.2,848.45,0.79308736]
[1756991521205,0.72044755,849.19,848.45,0.79308736]
[1756991521404,1.51356498,849.19,848.46,0.79308736]
[1756991521602,0.72044755,849.18,848.46,0.79308736]
[1756991521906,0.72044755,849.18,848.45,0.79308736]
[1756991522102,0.72044755,849.19,848.45,0.79308736]
[1756991523208,0.72044755,849.19,848.45,0.79317702]
[1756991524114,0.72044755,849.2,848.45,0.79317702]
[1756991524312,1.5137446,849.2,848.45,0.79317702]
[1756991524510,0.72044755,849.19,848.45,0.79317702]
[1756991524911,0.72044755,849.19,848.44,0.79317702]
[1756991525211,0.72044755,849.21,848.44,0.79317702]
[1756991529012,0.72044755,849.22,848.44,0.79317702]
[1756991531919,1.5137446,849.22,848.44,0.79317702]
[1756991532119,0.72044755,849.21,848.44,0.79317702]
[1756991532319,0.72044755,849.21,847.14,2.6392474]
[1756991532320,0.79329705,849.2,848.46,0.79317702]
[1756991532520,2.6406931,850.52,848.46,0.79317702]
[1756991532521,1.5137446,849.19,848.46,0.79317702]
[1756991532815,0.72044755,849.18,848.46,0.79317702]
[1756991533615,1.5137446,849.18,848.47,0.79317702]
[1756991533919,0.72044755,849.17,848.47,0.79317702]
[1756991534621,0.72044755,849.17,848.46,0.79317702]
[1756991534920,0.72044755,849.18,848.49,0.79317702]
[1756991535120,0.72044755,849.19,848.49,0.79317702]
[1756991535617,1.5137446,849.19,848.49,0.79317702]
[1756991535828,0.72044755,849.18,848.49,0.79317702]
[1756991536823,0.72044755,849.18,848.48,0.79317702]
[1756991537024,0.72083186,849.2,848.52,0.79317702]
[1756991537318,0.72083186,849.23,848.51,0.79317702]
[1756991537623,0.72083186,849.23,848.52,0.79317702]
[1756991538320,0.72083186,849.23,847.32,2.6392474]
[1756991538321,0.72083186,849.23,848.53,0.79317702]
[1756991538523,0.72083186,849.25,848.53,0.79317702]
[1756991538932,1.51412891,849.25,848.53,0.79317702]
[1756991539132,0.72083186,849.24,848.53,0.79317702]
[1756991542940,0.72083186,849.24,848.54,0.79317702]
[1756991543243,0.72083186,849.24,848.53,0.79317702]
[1756991543432,1.51412891,849.24,848.54,0.79317702]
[1756991543636,0.72083186,849.23,848.51,0.79317702]
[1756991543936,0.72083186,849.28,848.51,0.79317702]
[1756991544441,1.51412891,849.28,848.51,0.79317702]
[1756991544636,0.72083186,849.27,848.51,0.79317702]
[1756991546638,0.72083186,849.27,848.53,0.79317702]
[1756991546639,0.79329705,849.26,848.53,0.79317702]
[1756991546839,0.72083186,849.25,848.53,0.79317702]
[1756991547734,0.72083186,849.25,848.52,0.79317702]
[1756991549137,0.72083186,849.26,848.52,0.79317702]
[1756991553443,0.79329705,849.23,848.55,0.79317702]
[1756991553643,0.72083186,849.22,848.55,0.79317702]
[1756991555339,1.51412891,849.22,848.55,0.79317702]
[1756991555543,0.72083186,849.21,848.55,0.79317702]
[1756991556344,0.72083186,849.21,848.56,0.79317702]
[1756991558042,0.72083186,849.21,848.57,0.79317702]
[1756991558043,1.51412891,849.21,848.57,0.79317702]
[1756991558345,1.51412891,849.2,848.57,0.79317702]
[1756991558543,0.72083186,849.19,848.57,0.79317702]
[1756991558846,1.51412891,849.19,848.58,0.79317702]
[1756991559146,0.72083186,849.18,848.58,0.79317702]
[1756991559343,1.51412891,849.18,848.58,0.79317702]